[Event "*** MasterClass Titled Tuesday Blitz"]
[Site "Chess.com"]
[Date "2017.11.07"]
[Round "5"]
[White "pandamaster3000"]
[Black "MateusViageiro"]
[Result "1/2-1/2"]
[WhiteElo "2277"]
[BlackElo "2261"]
[TimeControl "180+2"]
[EndTime "15:14:10 PST"]
[Termination "Game drawn by repetition"]

1. e4 {[%clk 0:03:01.9]} 1... c5 {[%clk 0:02:59.6]} 2. Nf3 {[%clk 0:03:02.2]}
2... d6 {[%clk 0:02:59.8]} 3. Bb5+ {[%clk 0:03:03.2]} 3... Nd7 {[%clk
0:02:59.1]} 4. d4 {[%clk 0:03:03.6]} 4... cxd4 {[%clk 0:02:58.7]} 5. Qxd4 {[%clk
0:03:05.5]} 5... Nf6 {[%clk 0:02:58.6]} 6. c4 {[%clk 0:03:06.8]} 6... a6 {[%clk
0:02:57.3]} 7. Bxd7+ {[%clk 0:03:07.4]} 7... Bxd7 {[%clk 0:02:56.8]} 8. Bg5
{[%clk 0:03:02.3]} 8... Bc6 {[%clk 0:02:57.5]} 9. Nc3 {[%clk 0:03:00.5]} 9... h6
{[%clk 0:02:51.6]} 10. Be3 {[%clk 0:02:43.3]} 10... e5 {[%clk 0:02:49.3]} 11.
Qd3 {[%clk 0:02:42.3]} 11... Be7 {[%clk 0:02:49]} 12. O-O {[%clk 0:02:42.7]}
12... Rc8 {[%clk 0:02:48.8]} 13. Nd2 {[%clk 0:02:42]} 13... O-O {[%clk
0:02:36.4]} 14. f3 {[%clk 0:02:43]} 14... Rb8 {[%clk 0:02:20.4]} 15. Nd5 {[%clk
0:02:42.3]} 15... Nxd5 {[%clk 0:02:16.6]} 16. cxd5 {[%clk 0:02:44.2]} 16... Bb5
{[%clk 0:02:16.9]} 17. Nc4 {[%clk 0:02:45.2]} 17... Rc8 {[%clk 0:02:12.2]} 18.
Rfc1 {[%clk 0:02:43.7]} 18... Bg5 {[%clk 0:02:07.9]} 19. Bxg5 {[%clk 0:02:40.6]}
19... Qxg5 {[%clk 0:02:07.1]} 20. a4 {[%clk 0:02:41.9]} 20... Bxc4 {[%clk
0:01:56]} 21. Rxc4 {[%clk 0:02:42.4]} 21... Rxc4 {[%clk 0:01:44.8]} 22. Qxc4
{[%clk 0:02:44.3]} 22... Qd2 {[%clk 0:01:32.9]} 23. b3 {[%clk 0:02:36.6]} 23...
Kh7 {[%clk 0:01:28.3]} 24. Rc1 {[%clk 0:02:30]} 24... b5 {[%clk 0:01:18.9]} 25.
Qc3 {[%clk 0:02:24]} 25... Qg5 {[%clk 0:01:13.3]} 26. axb5 {[%clk 0:02:20.3]}
26... axb5 {[%clk 0:01:12.3]} 27. Ra1 {[%clk 0:02:21.2]} 27... f5 {[%clk
0:01:06.8]} 28. Qd3 {[%clk 0:02:01.6]} 28... b4 {[%clk 0:00:57.7]} 29. Rf1
{[%clk 0:01:52.4]} 29... Kh8 {[%clk 0:00:51.3]} 30. exf5 {[%clk 0:01:44.1]}
30... Rxf5 {[%clk 0:00:51.1]} 31. Ra1 {[%clk 0:01:36.2]} 31... Rf8 {[%clk
0:00:47.3]} 32. Kh1 {[%clk 0:01:22.9]} 32... Rc8 {[%clk 0:00:46.3]} 33. h3
{[%clk 0:01:22.8]} 33... Rc1+ {[%clk 0:00:42.2]} 34. Rxc1 {[%clk 0:01:23.9]}
34... Qxc1+ {[%clk 0:00:42.6]} 35. Kh2 {[%clk 0:01:25.3]} 35... Qf4+ {[%clk
0:00:41.7]} 36. Kh1 {[%clk 0:01:26.3]} 36... Kg8 {[%clk 0:00:38.8]} 37. Kg1
{[%clk 0:01:27.4]} 37... Kf7 {[%clk 0:00:38.4]} 38. Kf2 {[%clk 0:01:28.8]} 38...
Qc1 {[%clk 0:00:37.6]} 39. Qe3 {[%clk 0:01:23.8]} 39... Qc2+ {[%clk 0:00:31.6]}
40. Kg3 {[%clk 0:01:24.7]} 40... Kf6 {[%clk 0:00:24.4]} 41. Qb6 {[%clk
0:01:16.4]} 41... Qc5 {[%clk 0:00:21.4]} 42. Qd8+ {[%clk 0:01:09.2]} 42... Kg6
{[%clk 0:00:21]} 43. Qe8+ {[%clk 0:01:09]} 43... Kh7 {[%clk 0:00:21.8]} 44. Qe6
{[%clk 0:01:09.3]} 44... Qc7 {[%clk 0:00:19.7]} 45. Qf5+ {[%clk 0:01:08.2]}
45... Kg8 {[%clk 0:00:18.8]} 46. Qe6+ {[%clk 0:01:09.3]} 46... Kh7 {[%clk
0:00:16.9]} 47. Qf5+ {[%clk 0:01:10]} 47... Kg8 {[%clk 0:00:15.2]} 48. Qe6+
{[%clk 0:01:11.1]} 48... Kh7 {[%clk 0:00:15.1]} 49. Qf5+ {[%clk 0:01:11.8]}
1/2-1/2

[Event "*** MasterClass Titled Tuesday Blitz"]
[Site "Chess.com"]
[Date "2017.11.07"]
[Round "5"]
[White "Man-Chuk"]
[Black "MagnusCarlsen"]
[Result "1/2-1/2"]
[WhiteElo "2626"]
[BlackElo "3033"]
[TimeControl "180+2"]
[EndTime "15:14:30 PST"]
[Termination "Game drawn - insufficient material"]

1. d4 {[%clk 0:03:01]} 1... Nf6 {[%clk 0:02:55.9]} 2. Nf3 {[%clk 0:03:01.3]}
2... e6 {[%clk 0:02:56]} 3. c4 {[%clk 0:02:58.3]} 3... d5 {[%clk 0:02:56.4]} 4.
Nc3 {[%clk 0:02:58.2]} 4... Bb4 {[%clk 0:02:56.7]} 5. Bg5 {[%clk 0:02:57.7]}
5... dxc4 {[%clk 0:02:55.3]} 6. e4 {[%clk 0:02:49.8]} 6... b5 {[%clk 0:02:56]}
7. a4 {[%clk 0:02:23.1]} 7... c5 {[%clk 0:02:55.8]} 8. axb5 {[%clk 0:02:17.6]}
8... cxd4 {[%clk 0:02:55.9]} 9. Bxf6 {[%clk 0:02:09]} 9... Qxf6 {[%clk
0:02:56.5]} 10. Qxd4 {[%clk 0:02:10.2]} 10... Qxd4 {[%clk 0:02:56.9]} 11. Nxd4
{[%clk 0:02:12.1]} 11... Bb7 {[%clk 0:02:58.5]} 12. f3 {[%clk 0:02:11.2]} 12...
Ke7 {[%clk 0:02:59.5]} 13. Ra4 {[%clk 0:02:01.7]} 13... a5 {[%clk 0:01:28.9]}
14. bxa6 {[%clk 0:01:48.9]} 14... Nxa6 {[%clk 0:01:28.9]} 15. Bxc4 {[%clk
0:01:45.5]} 15... Bc5 {[%clk 0:01:29.1]} 16. Nb3 {[%clk 0:01:09.5]} 16... Bd6
{[%clk 0:01:26.8]} 17. Ke2 {[%clk 0:01:07.9]} 17... Rhb8 {[%clk 0:01:24.8]} 18.
Rha1 {[%clk 0:01:02.3]} 18... Bxh2 {[%clk 0:01:25.1]} 19. Bxa6 {[%clk
0:00:57.7]} 19... Bxa6+ {[%clk 0:01:24]} 20. Rxa6 {[%clk 0:00:59.6]} 20... Rxa6
{[%clk 0:01:25.8]} 21. Rxa6 {[%clk 0:01:01]} 21... Rxb3 {[%clk 0:01:27.4]} 22.
Ra2 {[%clk 0:00:47.3]} 22... Be5 {[%clk 0:01:28]} 23. Kd3 {[%clk 0:00:48.1]}
23... Rb4 {[%clk 0:01:29.5]} 24. Kc2 {[%clk 0:00:43.8]} 24... h5 {[%clk
0:01:30.4]} 25. Ra7+ {[%clk 0:00:42.5]} 25... Kf6 {[%clk 0:01:31]} 26. Ra6
{[%clk 0:00:43.8]} 26... Kg5 {[%clk 0:01:29.1]} 27. Ra7 {[%clk 0:00:44.8]} 27...
f5 {[%clk 0:01:18.3]} 28. exf5 {[%clk 0:00:39.7]} 28... exf5 {[%clk 0:01:19.9]}
29. Ra5 {[%clk 0:00:36.7]} 29... Bd4 {[%clk 0:01:16.4]} 30. Kd3 {[%clk
0:00:29.9]} 30... Bf6 {[%clk 0:00:33.8]} 31. Ne4+ {[%clk 0:00:29.4]} 31... Kf4
{[%clk 0:00:34.4]} 32. g3+ {[%clk 0:00:27.4]} 32... Kxf3 {[%clk 0:00:35.5]} 33.
Rxf5+ {[%clk 0:00:28.8]} 33... Kg2 {[%clk 0:00:37.1]} 34. Nxf6 {[%clk
0:00:27.3]} 34... gxf6 {[%clk 0:00:39]} 35. Rxh5 {[%clk 0:00:27.7]} 35... Kxg3
{[%clk 0:00:38.4]} 36. Rf5 {[%clk 0:00:28.1]} 36... Rb6 {[%clk 0:00:39.4]} 37.
Rf1 {[%clk 0:00:24.3]} 37... Kg4 {[%clk 0:00:39.5]} 38. Rg1+ {[%clk 0:00:25.1]}
38... Kf4 {[%clk 0:00:40.5]} 39. Rf1+ {[%clk 0:00:26.2]} 39... Ke5 {[%clk
0:00:41.5]} 40. Re1+ {[%clk 0:00:27.3]} 40... Kd5 {[%clk 0:00:42.6]} 41. Rf1
{[%clk 0:00:27.9]} 41... Ke6 {[%clk 0:00:38.8]} 42. Re1+ {[%clk 0:00:28.5]}
42... Kf7 {[%clk 0:00:40]} 43. Kc3 {[%clk 0:00:29.7]} 43... f5 {[%clk
0:00:41.2]} 44. b4 {[%clk 0:00:30.3]} 44... Kf6 {[%clk 0:00:41.1]} 45. Kc4
{[%clk 0:00:31.5]} 45... f4 {[%clk 0:00:42.2]} 46. b5 {[%clk 0:00:29.4]} 46...
Kf5 {[%clk 0:00:43.2]} 47. Kc5 {[%clk 0:00:30.7]} 47... Rb8 {[%clk 0:00:44.8]}
48. b6 {[%clk 0:00:30.8]} 48... f3 {[%clk 0:00:46.3]} 49. Kc6 {[%clk 0:00:30.9]}
49... Kf4 {[%clk 0:00:47.4]} 50. Kc7 {[%clk 0:00:31.2]} 50... Rxb6 {[%clk
0:00:49]} 51. Kxb6 {[%clk 0:00:31.9]} 51... f2 {[%clk 0:00:50.9]} 52. Rf1 {[%clk
0:00:32.8]} 52... Ke3 {[%clk 0:00:52.8]} 53. Rxf2 {[%clk 0:00:34.7]} 53... Kxf2
{[%clk 0:00:54.4]} 1/2-1/2

[Event "*** MasterClass Titled Tuesday Blitz"]
[Site "Chess.com"]
[Date "2017.11.07"]
[Round "5"]
[White "LawrenceTrent"]
[Black "Grebeniuk-S"]
[Result "1-0"]
[WhiteElo "2364"]
[BlackElo "2420"]
[TimeControl "180+2"]
[EndTime "15:14:34 PST"]
[Termination "LawrenceTrent won by resignation"]

1. d4 {[%clk 0:03:01.9]} 1... f5 {[%clk 0:03:00.7]} 2. Nc3 {[%clk 0:03:02.4]}
2... d5 {[%clk 0:02:58.5]} 3. Bf4 {[%clk 0:03:03.5]} 3... Nf6 {[%clk 0:02:57.6]}
4. e3 {[%clk 0:03:04.5]} 4... e6 {[%clk 0:02:56.9]} 5. Bd3 {[%clk 0:03:04.3]}
5... c5 {[%clk 0:02:56.7]} 6. Nb5 {[%clk 0:03:03]} 6... Na6 {[%clk 0:02:55.8]}
7. c3 {[%clk 0:03:03.1]} 7... Be7 {[%clk 0:02:45.2]} 8. Nf3 {[%clk 0:03:02.6]}
8... O-O {[%clk 0:02:45]} 9. O-O {[%clk 0:03:03.7]} 9... Bd7 {[%clk 0:02:41.2]}
10. a4 {[%clk 0:03:04.6]} 10... c4 {[%clk 0:02:25.6]} 11. Bc2 {[%clk 0:03:05.2]}
11... Bxb5 {[%clk 0:02:23.1]} 12. axb5 {[%clk 0:03:06]} 12... Nc7 {[%clk
0:02:24.6]} 13. Ba4 {[%clk 0:02:54]} 13... Nd7 {[%clk 0:01:58.3]} 14. Kh1 {[%clk
0:02:22.8]} 14... Nb6 {[%clk 0:01:52]} 15. Bc2 {[%clk 0:02:06.5]} 15... Nxb5
{[%clk 0:01:42.2]} 16. g4 {[%clk 0:02:07.4]} 16... Nd6 {[%clk 0:01:28.3]} 17.
Rg1 {[%clk 0:01:50.5]} 17... Ne4 {[%clk 0:01:29.1]} 18. Qe2 {[%clk 0:01:49]}
18... Nd7 {[%clk 0:01:22.2]} 19. gxf5 {[%clk 0:01:48.6]} 19... exf5 {[%clk
0:01:24.1]} 20. Ne5 {[%clk 0:01:49]} 20... Nxe5 {[%clk 0:01:24.1]} 21. Bxe5
{[%clk 0:01:50.2]} 21... Bf6 {[%clk 0:01:25.5]} 22. f3 {[%clk 0:01:45.3]} 22...
Nd6 {[%clk 0:01:07.2]} 23. Qg2 {[%clk 0:01:40]} 23... g6 {[%clk 0:01:00.9]} 24.
Bxd6 {[%clk 0:01:30.9]} 24... Qxd6 {[%clk 0:01:02.8]} 25. Bxf5 {[%clk
0:01:32.1]} 25... Bg7 {[%clk 0:00:45.5]} 26. Bh3 {[%clk 0:01:24.2]} 26... Rae8
{[%clk 0:00:45.2]} 27. e4 {[%clk 0:01:25]} 27... a6 {[%clk 0:00:22.2]} 28. Ra5
{[%clk 0:01:12.9]} 28... dxe4 {[%clk 0:00:21.3]} 29. fxe4 {[%clk 0:01:14.8]}
29... Qf4 {[%clk 0:00:22.5]} 30. e5 {[%clk 0:01:11.4]} 30... Qe3 {[%clk
0:00:22.8]} 31. Qd5+ {[%clk 0:00:47.5]} 31... Kh8 {[%clk 0:00:23.4]} 32. Bg2
{[%clk 0:00:49.4]} 32... Rf2 {[%clk 0:00:18.2]} 33. Qxb7 {[%clk 0:00:50.5]}
33... Ref8 {[%clk 0:00:18.9]} 34. Rxa6 {[%clk 0:00:50.3]} 34... Qd2 {[%clk
0:00:10]} 35. Ra8 {[%clk 0:00:50.9]} 35... Qxb2 {[%clk 0:00:05.1]} 36. Rxf8+
{[%clk 0:00:50]} 36... Bxf8 {[%clk 0:00:07]} 37. Qxb2 {[%clk 0:00:46.1]} 37...
Rxb2 {[%clk 0:00:08.9]} 38. Bd5 {[%clk 0:00:41.1]} 38... Rc2 {[%clk 0:00:09.4]}
39. Rg3 {[%clk 0:00:42.3]} 39... Bh6 {[%clk 0:00:07.7]} 40. Bxc4 {[%clk
0:00:42.3]} 40... Bf4 {[%clk 0:00:09.3]} 41. Rf3 {[%clk 0:00:42.3]} 41... g5
{[%clk 0:00:07.9]} 42. e6 {[%clk 0:00:40.5]} 42... Rc1+ {[%clk 0:00:08.5]} 43.
Kg2 {[%clk 0:00:39.9]} 43... Re1 {[%clk 0:00:10.4]} 44. Rf2 {[%clk 0:00:36.9]}
44... Rc1 {[%clk 0:00:05.4]} 45. e7 {[%clk 0:00:36.6]} 1-0

[Event "*** MasterClass Titled Tuesday Blitz"]
[Site "Chess.com"]
[Date "2017.11.07"]
[Round "5"]
[White "yurisolo"]
[Black "Sam_ChessMood"]
[Result "1/2-1/2"]
[WhiteElo "2593"]
[BlackElo "2634"]
[TimeControl "180+2"]
[EndTime "15:14:44 PST"]
[Termination "Game drawn by agreement"]

1. e4 {[%clk 0:03:01.9]} 1... e5 {[%clk 0:02:57.9]} 2. Nf3 {[%clk 0:03:01.8]}
2... Nf6 {[%clk 0:02:59]} 3. Nxe5 {[%clk 0:03:01.1]} 3... d6 {[%clk 0:03:00.1]}
4. Nf3 {[%clk 0:03:02.2]} 4... Nxe4 {[%clk 0:03:01.3]} 5. d4 {[%clk 0:03:02.8]}
5... d5 {[%clk 0:03:00.8]} 6. Bd3 {[%clk 0:03:04.4]} 6... Bf5 {[%clk 0:02:55.8]}
7. O-O {[%clk 0:02:57]} 7... Be7 {[%clk 0:02:55.1]} 8. Re1 {[%clk 0:02:53]} 8...
O-O {[%clk 0:02:48.8]} 9. c4 {[%clk 0:02:37.3]} 9... Nc6 {[%clk 0:02:49.3]} 10.
Nc3 {[%clk 0:02:11.7]} 10... Nxc3 {[%clk 0:02:47]} 11. bxc3 {[%clk 0:02:13.6]}
11... Bxd3 {[%clk 0:02:48.2]} 12. Qxd3 {[%clk 0:02:15.5]} 12... dxc4 {[%clk
0:02:30.9]} 13. Qxc4 {[%clk 0:02:17.4]} 13... Qd7 {[%clk 0:02:31.4]} 14. Rb1
{[%clk 0:02:15.1]} 14... b6 {[%clk 0:02:16.3]} 15. d5 {[%clk 0:02:14.9]} 15...
Na5 {[%clk 0:02:15]} 16. Qd3 {[%clk 0:02:16.2]} 16... Bf6 {[%clk 0:01:36.3]} 17.
Bg5 {[%clk 0:02:05.7]} 17... Qd6 {[%clk 0:01:37.1]} 18. Bxf6 {[%clk 0:01:40]}
18... Qxf6 {[%clk 0:01:38]} 19. Qe4 {[%clk 0:01:41.9]} 19... Rad8 {[%clk
0:01:29.9]} 20. c4 {[%clk 0:01:33.6]} 20... c6 {[%clk 0:00:55.9]} 21. Rbd1
{[%clk 0:01:27.1]} 21... cxd5 {[%clk 0:00:51.9]} 22. cxd5 {[%clk 0:01:26.5]}
22... Nb7 {[%clk 0:00:52.6]} 23. Ne5 {[%clk 0:01:16.2]} 23... Nc5 {[%clk
0:00:53.4]} 24. Qc4 {[%clk 0:01:07.2]} 24... Rd6 {[%clk 0:00:41.8]} 25. Nc6
{[%clk 0:00:56.1]} 25... h6 {[%clk 0:00:25.6]} 26. Nxa7 {[%clk 0:00:48.6]} 26...
Ra8 {[%clk 0:00:26.1]} 27. Nc6 {[%clk 0:00:43.8]} 27... Ra4 {[%clk 0:00:21.2]}
28. Re8+ {[%clk 0:00:37.2]} 28... Kh7 {[%clk 0:00:22.4]} 29. Qc2+ {[%clk
0:00:39]} 29... Qg6 {[%clk 0:00:23.7]} 30. Qxg6+ {[%clk 0:00:23.1]} 30... fxg6
{[%clk 0:00:25]} 31. f3 {[%clk 0:00:14.6]} 31... Rxa2 {[%clk 0:00:20.4]} 32. Ne5
{[%clk 0:00:15.7]} 32... g5 {[%clk 0:00:20.2]} 33. Rh8+ {[%clk 0:00:08]} 33...
Kxh8 {[%clk 0:00:21]} 34. Nf7+ {[%clk 0:00:09.9]} 34... Kg8 {[%clk 0:00:22.2]}
35. Nxd6 {[%clk 0:00:11.8]} 35... Nd7 {[%clk 0:00:20.4]} 36. Re1 {[%clk
0:00:09.5]} 36... Rd2 {[%clk 0:00:18.8]} 37. Re8+ {[%clk 0:00:10.4]} 37... Kh7
{[%clk 0:00:20]} 38. Re7 {[%clk 0:00:10.4]} 38... Rxd5 {[%clk 0:00:14.1]} 39.
Rxd7 {[%clk 0:00:11.1]} 39... b5 {[%clk 0:00:15.2]} 40. Kf2 {[%clk 0:00:07.7]}
40... b4 {[%clk 0:00:16.4]} 41. Ke3 {[%clk 0:00:07.9]} 41... b3 {[%clk
0:00:17.8]} 42. Rb7 {[%clk 0:00:08.6]} 42... Rxd6 {[%clk 0:00:17.9]} 43. Rxb3
{[%clk 0:00:09.5]} 43... Re6+ {[%clk 0:00:18.7]} 44. Kf2 {[%clk 0:00:09.9]}
1/2-1/2

[Event "*** MasterClass Titled Tuesday Blitz"]
[Site "Chess.com"]
[Date "2017.11.07"]
[Round "5"]
[White "Fy_Rakotomaharo"]
[Black "plouarzel"]
[Result "1-0"]
[WhiteElo "2456"]
[BlackElo "2448"]
[TimeControl "180+2"]
[EndTime "15:14:45 PST"]
[Termination "Fy_Rakotomaharo won by checkmate"]

1. e4 {[%clk 0:03:01.7]} 1... d6 {[%clk 0:02:59]} 2. d4 {[%clk 0:03:02.2]} 2...
Nf6 {[%clk 0:03:00.1]} 3. Nc3 {[%clk 0:03:02.6]} 3... e5 {[%clk 0:03:01.3]} 4.
Nf3 {[%clk 0:03:02.9]} 4... Nbd7 {[%clk 0:03:02.4]} 5. Bc4 {[%clk 0:03:04]} 5...
exd4 {[%clk 0:03:04]} 6. Nxd4 {[%clk 0:03:01.3]} 6... Nb6 {[%clk 0:03:05.2]} 7.
Bb3 {[%clk 0:02:59.8]} 7... c5 {[%clk 0:03:05.4]} 8. Nf3 {[%clk 0:02:44.3]} 8...
c4 {[%clk 0:03:01.2]} 9. Ba4+ {[%clk 0:02:31.5]} 9... Nxa4 {[%clk 0:03:01.9]}
10. Nxa4 {[%clk 0:02:33.4]} 10... Nxe4 {[%clk 0:03:03.8]} 11. O-O {[%clk
0:02:33.8]} 11... d5 {[%clk 0:03:01.6]} 12. Qd4 {[%clk 0:02:24.3]} 12... Be6
{[%clk 0:02:23.1]} 13. Bf4 {[%clk 0:01:55.3]} 13... b5 {[%clk 0:02:11.9]} 14.
Nc3 {[%clk 0:01:55.1]} 14... Nxc3 {[%clk 0:02:11]} 15. bxc3 {[%clk 0:01:54.1]}
15... f6 {[%clk 0:01:51.6]} 16. Rfe1 {[%clk 0:01:50.5]} 16... Kf7 {[%clk
0:01:52.8]} 17. a4 {[%clk 0:01:40.6]} 17... b4 {[%clk 0:01:50]} 18. cxb4 {[%clk
0:01:29.6]} 18... Bxb4 {[%clk 0:01:51.9]} 19. Reb1 {[%clk 0:01:29.4]} 19... a5
{[%clk 0:01:44.7]} 20. c3 {[%clk 0:01:30.2]} 20... Be7 {[%clk 0:01:44.3]} 21.
Rb7 {[%clk 0:01:30.3]} 21... Re8 {[%clk 0:01:28.5]} 22. Re1 {[%clk 0:01:17.1]}
22... Rc8 {[%clk 0:01:04.3]} 23. Qa7 {[%clk 0:00:52.2]} 23... Rc6 {[%clk
0:00:48.9]} 24. Nd4 {[%clk 0:00:50.5]} 24... Qc8 {[%clk 0:00:20.7]} 25. Nxc6
{[%clk 0:00:40.5]} 25... Qxc6 {[%clk 0:00:22.6]} 26. Rb6 {[%clk 0:00:40.1]}
26... Qd7 {[%clk 0:00:15.9]} 27. Qxa5 {[%clk 0:00:26.9]} 27... Bf5 {[%clk
0:00:06.2]} 28. Qb5 {[%clk 0:00:26.9]} 28... Qd8 {[%clk 0:00:05.2]} 29. Rb7
{[%clk 0:00:23.5]} 29... Kf8 {[%clk 0:00:06.2]} 30. a5 {[%clk 0:00:18.7]} 30...
Be4 {[%clk 0:00:06.5]} 31. f3 {[%clk 0:00:16.1]} 31... Bd3 {[%clk 0:00:05]} 32.
a6 {[%clk 0:00:13.8]} 32... Qc8 {[%clk 0:00:05.9]} 33. Rexe7 {[%clk 0:00:12.8]}
33... Rxe7 {[%clk 0:00:06.4]} 34. Bd6 {[%clk 0:00:13.8]} 34... Qe6 {[%clk
0:00:06]} 35. Bxe7+ {[%clk 0:00:13.2]} 35... Kg8 {[%clk 0:00:07.6]} 36. Qe8#
{[%clk 0:00:13.2]} 1-0

[Event "*** MasterClass Titled Tuesday Blitz"]
[Site "Chess.com"]
[Date "2017.11.07"]
[Round "5"]
[White "DanielNaroditsky"]
[Black "MITerryble"]
[Result "0-1"]
[WhiteElo "2727"]
[BlackElo "2632"]
[TimeControl "180+2"]
[EndTime "15:14:51 PST"]
[Termination "MITerryble won by resignation"]

1. b3 {[%clk 0:03:01.9]} 1... d5 {[%clk 0:03:00]} 2. Bb2 {[%clk 0:03:03.3]} 2...
Bg4 {[%clk 0:03:00.8]} 3. Nf3 {[%clk 0:03:00.2]} 3... c6 {[%clk 0:02:58.2]} 4.
Ne5 {[%clk 0:02:59.5]} 4... Bf5 {[%clk 0:02:59.2]} 5. g4 {[%clk 0:02:57.5]} 5...
Be6 {[%clk 0:02:55.7]} 6. f4 {[%clk 0:02:43.4]} 6... Bc8 {[%clk 0:02:56.3]} 7.
Bg2 {[%clk 0:02:24.2]} 7... f6 {[%clk 0:02:54.3]} 8. Nd3 {[%clk 0:02:24.6]} 8...
Bxg4 {[%clk 0:02:54]} 9. O-O {[%clk 0:02:26.3]} 9... Nh6 {[%clk 0:02:53.2]} 10.
Qe1 {[%clk 0:02:21.7]} 10... e6 {[%clk 0:02:53.7]} 11. e4 {[%clk 0:02:21.9]}
11... Be7 {[%clk 0:02:35.7]} 12. h3 {[%clk 0:01:49.4]} 12... Bh5 {[%clk
0:02:36]} 13. f5 {[%clk 0:01:51]} 13... e5 {[%clk 0:02:26.2]} 14. exd5 {[%clk
0:01:33.6]} 14... cxd5 {[%clk 0:02:27.2]} 15. Nxe5 {[%clk 0:01:27.1]} 15... fxe5
{[%clk 0:02:27.9]} 16. Qxe5 {[%clk 0:01:29]} 16... Qb6+ {[%clk 0:01:58.3]} 17.
Bd4 {[%clk 0:01:27.9]} 17... Nc6 {[%clk 0:01:55.8]} 18. Bxb6 {[%clk 0:01:22.6]}
18... Nxe5 {[%clk 0:01:56.3]} 19. Bd4 {[%clk 0:01:24.5]} 19... Nhf7 {[%clk
0:01:24]} 20. Nc3 {[%clk 0:01:24.9]} 20... O-O {[%clk 0:01:17.4]} 21. Nxd5
{[%clk 0:01:25.7]} 21... Bg5 {[%clk 0:01:15.6]} 22. Rae1 {[%clk 0:01:21.9]}
22... Nc6 {[%clk 0:01:10.5]} 23. Bc3 {[%clk 0:01:19.8]} 23... Rae8 {[%clk
0:00:50.3]} 24. b4 {[%clk 0:01:03.7]} 24... Rxe1 {[%clk 0:00:45.3]} 25. Rxe1
{[%clk 0:01:04.9]} 25... Nd6 {[%clk 0:00:47.2]} 26. f6 {[%clk 0:00:56.4]} 26...
Bxf6 {[%clk 0:00:43.7]} 27. Nxf6+ {[%clk 0:00:53.8]} 27... gxf6 {[%clk
0:00:45.6]} 28. Re6 {[%clk 0:00:52.8]} 28... Nb5 {[%clk 0:00:41.8]} 29. Bxf6
{[%clk 0:00:44]} 29... Nc7 {[%clk 0:00:39.3]} 30. Rd6 {[%clk 0:00:44.9]} 30...
Ne8 {[%clk 0:00:35.8]} 31. Rxc6 {[%clk 0:00:24.6]} 31... bxc6 {[%clk 0:00:36]}
32. Bd4 {[%clk 0:00:24.3]} 32... Bf3 {[%clk 0:00:35.3]} 33. Bf1 {[%clk 0:00:26]}
33... Rf7 {[%clk 0:00:32.9]} 34. Bc5 {[%clk 0:00:21.2]} 34... Nf6 {[%clk
0:00:31.8]} 35. d3 {[%clk 0:00:16.7]} 35... a6 {[%clk 0:00:27.6]} 36. a4 {[%clk
0:00:17.1]} 36... Nd5 {[%clk 0:00:27.6]} 37. d4 {[%clk 0:00:14.3]} 37... Nf4
{[%clk 0:00:22.3]} 38. Bxa6 {[%clk 0:00:12.1]} 38... Nxh3+ {[%clk 0:00:21.2]}
39. Kh2 {[%clk 0:00:13.8]} 39... Nf4 {[%clk 0:00:19]} 40. a5 {[%clk 0:00:15.4]}
40... Rg7 {[%clk 0:00:18.3]} 41. Bf1 {[%clk 0:00:15.3]} 41... Be2 {[%clk
0:00:15.7]} 42. Bxe2 {[%clk 0:00:14.9]} 42... Rg2+ {[%clk 0:00:16.4]} 43. Kh1
{[%clk 0:00:16.4]} 43... Rxe2 {[%clk 0:00:18.3]} 44. c4 {[%clk 0:00:06.6]} 44...
Ra2 {[%clk 0:00:18.8]} 45. Bb6 {[%clk 0:00:08.1]} 45... Kf7 {[%clk 0:00:17.1]}
46. b5 {[%clk 0:00:09.6]} 46... cxb5 {[%clk 0:00:18.3]} 47. cxb5 {[%clk
0:00:11.5]} 47... Nd5 {[%clk 0:00:19.2]} 48. Bd8 {[%clk 0:00:12.8]} 48... Ke8
{[%clk 0:00:20]} 49. a6 {[%clk 0:00:14.1]} 0-1